fUST/lending_fUST_20241225
["ID","MTS","AMOUNT","RATE_DAILY","PERIOD"]
[346559322,1735086654283,-580.58399952,0.00013972,2]
[346559323,1735086654292,-500.0,0.00013972,2]
[346559324,1735086654302,-500.0,0.00013972,2]
[346559325,1735086654312,-500.0,0.00013972,2]
[346559326,1735086654321,-602.38,0.00013972,2]
[346559327,1735086654331,-2787.32,0.00013972,2]
[346559328,1735086654341,-231.935118,0.00013972,2]
[346559329,1735086654350,-1487.87,0.00013972,2]
[346559330,1735086654360,-231.935118,0.00013972,2]
[346559331,1735086654370,-231.935118,0.00013972,2]
[346559332,1735086654380,-231.935118,0.00013972,2]
[346559333,1735086654390,-231.935118,0.00013972,2]
[346559334,1735086654400,-231.935118,0.00013972,2]
[346559335,1735086654410,-500.0,0.00013972,2]
[346559336,1735086654419,-151.0,0.00013972,2]
[346559337,1735086654428,-151.0,0.00013972,2]
[346559338,1735086654438,-500.0,0.00013972,2]
[346559339,1735086654448,-231.935118,0.00013972,2]
[346559340,1735086654457,-151.0,0.00013972,2]
[346559341,1735086654467,-231.935118,0.00013972,2]
[346559342,1735086654477,-500.0,0.00013972,2]
[346559343,1735086654487,-151.0,0.00013972,2]
[346559344,1735086654496,-231.935118,0.00013972,2]
[346559345,1735086654507,-151.0,0.00013972,2]
[346559346,1735086654517,-231.935118,0.00013972,2]
[346559347,1735086654527,-151.0,0.00013972,2]
[346559348,1735086654536,-231.935118,0.00013972,2]
[346559349,1735086654545,-231.935114,0.00013972,2]
[346559350,1735086654555,-151.0,0.00013972,2]
[346559351,1735086654564,-151.0,0.00013972,2]
[346559352,1735086654574,-2528.26,0.00013972,2]
[346559353,1735086654583,-221.504601,0.00013972,2]
[346559354,1735086654593,-500.0,0.00013972,2]
[346559355,1735086654602,-500.0,0.00013972,2]
[346559356,1735086654612,-1697.29,0.00013972,2]
[346559357,1735086654622,-500.0,0.00013972,2]
[346559358,1735086654631,-1433.31,0.00013972,2]
[346559359,1735086654641,-500.0,0.00013972,2]
[346559360,1735086654651,-151.0,0.00013972,2]
[346559361,1735086654660,-151.0,0.00013972,2]
[346559362,1735086654670,-228.329839,0.00013972,2]
[346559363,1735086654679,-750.48,0.00013972,2]
[346559364,1735086654689,-1697.64,0.00013972,2]
[346559365,1735086654698,-500.0,0.00013972,2]
[346559366,1735086654707,-500.0,0.00013972,2]
[346559367,1735086654718,-1682.76,0.00013972,2]
[346559368,1735086654727,-150.5159041,0.00013972,2]
[346559369,1735086654736,-824.36,0.00013972,2]
[346559370,1735086654746,-643.14,0.00013972,2]
[346559371,1735086654755,-150.14,0.00013972,2]
[346559372,1735086654765,-660.11,0.00013972,2]
[346559373,1735086654774,-500.0,0.00013972,2]
[346559374,1735086654784,-623.06,0.00013972,2]
[346559375,1735086654793,-150.21752927,0.00013972,2]
[346559376,1735086654802,-500.0,0.00013972,2]
[346559377,1735086654812,-500.0,0.00013972,2]
[346559378,1735086654822,-500.0,0.00013972,2]
[346559379,1735086654831,-500.0,0.00013972,2]
[346559380,1735086654840,-2524.93,0.00013972,2]
[346559381,1735086654850,-500.0,0.00013972,2]
[346559382,1735086654859,-500.0,0.00013972,2]
[346559383,1735086654868,-150.09,0.00013972,2]
[346559384,1735086654878,-1675.9,0.00013972,2]
[346559385,1735086654888,-150.09,0.00013972,2]
[346559386,1735086654898,-500.0,0.00013972,2]
[346559387,1735086654907,-150.14,0.00013972,2]
[346559388,1735086654916,-150.14,0.00013972,2]
[346559389,1735086654925,-500.0,0.00013972,2]
[346559390,1735086654935,-7075.45,0.00013972,2]
[346559391,1735086654945,-1268.77,0.00013972,2]
[346559392,1735086654954,-500.0,0.00013972,2]
[346559393,1735086654964,-770.87,0.00013972,2]
[346559394,1735086654974,-500.0,0.00013972,2]
[346559395,1735086654983,-87764.6,0.00013972,2]
[346559396,1735086654993,-500.0,0.00013972,2]
[346559397,1735086655002,-500.0,0.00013972,2]
[346559398,1735086655012,-615.66370302,0.00013972,2]
[346559399,1735086655023,-500.0,0.00013972,2]
[346559400,1735086655032,-151.0,0.00013972,2]
[346559401,1735086655041,-500.0,0.00013972,2]
[346559402,1735086655051,-151.0,0.00013972,2]
[346559403,1735086655064,-151.0,0.00013972,2]
[346559404,1735086655073,-151.0,0.00013972,2]
[346559405,1735086655083,-1740.62,0.00013972,2]
[346559406,1735086655092,-151.0,0.00013972,2]
[346559407,1735086655102,-536.80674944,0.00013972,2]
[346559408,1735086655111,-21668.77,0.00013972,2]
[346559409,1735086655121,-826.23,0.00013972,2]
[346559410,1735086655130,-500.0,0.00013972,2]
[346559411,1735086655142,-151.0,0.00013972,2]
[346559412,1735086655152,-151.0,0.00013972,2]
[346559413,1735086655162,-151.0,0.00013972,2]
[346559414,1735086655172,-151.0,0.00013972,2]
[346559415,1735086655182,-702.48,0.00013972,2]
[346559416,1735086655191,-1976.52,0.00013972,2]
[346559417,1735086655200,-776.9,0.00013972,2]
[346559418,1735086655209,-976.99,0.00013972,2]
[346559419,1735086655218,-503.74578435,0.00013972,2]
[346559420,1735086655228,-500.0,0.00013972,2]
[346559421,1735086655238,-500.0,0.00013972,2]
[346559422,1735086655247,-500.0,0.00013972,2]
[346559423,1735086655256,-500.0,0.00013972,2]
[346559424,1735086655266,-751.13,0.00013972,2]
[346559425,1735086655275,-521.15447523,0.00013972,2]
[346559426,1735086655284,-2895.41,0.00013972,2]
[346559427,1735086655294,-860.27,0.00013972,2]
[346559428,1735086655303,-500.0,0.00013972,2]
[346559429,1735086655313,-2185.02,0.00013972,2]
[346559430,1735086655322,-3435.33,0.00013972,2]
[346559431,1735086655332,-1113.43,0.00013972,2]
[346559432,1735086655342,-500.0,0.00013972,2]
[346559433,1735086655351,-500.0,0.00013973,2]
[346559434,1735086655360,-436.17641683,0.00013973,2]
[346559435,1735086655370,-500.0,0.00013973,2]
[346559436,1735086655380,-500.0,0.00013973,2]
[346559437,1735086655390,-500.0,0.00013973,2]
[346559438,1735086655400,-500.0,0.00013973,2]
[346559439,1735086655409,-500.0,0.00013973,2]
[346559440,1735086655420,-400.0,0.00013973,2]
[346559441,1735086655430,-5793.6238506,0.00014,7]
[346559442,1735086655440,-1063.73606429,0.00014067,2]
[346559443,1735086655450,-221.429401,0.000141,2]
[346559444,1735086655460,-221.429401,0.000141,2]
[346559445,1735086655470,-9894.33282618,0.00014104,2]
[346559446,1735086655480,-2000.0,0.000142,2]
[346559447,1735086655489,-432.0,0.000142,5]
[346559448,1735086655499,-124954.00493133,0.0001423,5]
[346559449,1735086655509,-287.674482,0.0001423,2]
[346559450,1735086655521,-287.674482,0.0001423,2]
[346559451,1735086655531,-864.92652,0.0001423,2]
[346559452,1735086655541,-864.926511,0.0001423,2]
[346559453,1735086655550,-308.403845,0.0001423,2]
[346559454,1735086655560,-308.403845,0.0001423,2]
[346559455,1735086655569,-299.987962,0.0001423,2]
[346559456,1735086655580,-150.09,0.00014246,2]
[346559457,1735086655589,-299.98537315,0.00014246,2]
[346559458,1735086655599,-299.87,0.00014246,2]
[346559459,1735086655609,-150.09,0.00014246,2]
[346559460,1735086655619,-750.62227997,0.00014246,2]
[346559461,1735086655629,-500.0,0.00014246,2]
[346559462,1735086655639,-150.09,0.00014246,2]
[346559463,1735086655650,-2127.65109085,0.00014246,2]
[346559464,1735086655660,-221.429401,0.00014246,2]
[346559465,1735086655670,-221.429401,0.00014246,2]
[346559466,1735086655680,-221.429401,0.00014246,2]
[346559467,1735086655690,-221.429401,0.00014246,2]
[346559468,1735086655699,-221.429401,0.00014246,2]
[346559469,1735086655709,-221.429401,0.00014246,2]
[346559470,1735086655720,-221.429401,0.00014246,2]
[346559471,1735086655730,-221.429401,0.00014246,2]
[346559472,1735086655739,-503.92428369,0.00014246,2]
[346559473,1735086655749,-500.0,0.00014246,2]
[346559474,1735086655759,-500.0,0.00014246,2]
[346559475,1735086655769,-500.0,0.00014246,2]
[346559476,1735086655778,-500.0,0.00014246,2]
[346559477,1735086655787,-500.0,0.00014246,2]
[346559478,1735086655797,-500.0,0.00014246,2]
[346559479,1735086655807,-739.18,0.00014246,2]
[346559480,1735086655817,-190.24022691,0.00014246,2]
[346559481,1735086655826,-517.00251571,0.00014246,2]
[346559482,1735086655837,-272.866958,0.00014246,2]
[346559483,1735086655847,-272.866958,0.00014246,2]
[346559484,1735086655857,-272.866958,0.00014246,2]
[346559485,1735086655867,-272.866958,0.00014246,2]
[346559486,1735086655877,-272.866958,0.00014246,2]
[346559487,1735086655887,-272.866958,0.00014246,2]
[346559488,1735086655898,-272.866958,0.00014246,2]
[346559489,1735086655908,-272.866964,0.00014246,2]
[346559490,1735086655918,-500.0,0.00014246,2]
[346559491,1735086655928,-500.0,0.00014246,2]
[346559492,1735086655939,-506.58146359,0.00014246,2]
[346559493,1735086655949,-500.0,0.00014246,2]
[346559494,1735086655959,-154.425607,0.00014246,2]
[346559495,1735086655968,-154.425607,0.00014246,2]
[346559496,1735086655978,-154.425607,0.00014246,2]
[346559497,1735086655988,-154.425607,0.00014246,2]
[346559498,1735086655998,-500.0,0.00014246,2]
[346559499,1735086656008,-500.0,0.00014246,2]
[346559500,1735086656018,-154.425607,0.00014246,2]
[346559501,1735086656028,-154.425607,0.00014246,2]
[346559502,1735086656038,-154.425607,0.00014246,2]
[346559503,1735086656047,-154.425604,0.00014246,2]
[346559504,1735086656060,-500.0,0.00014246,2]
[346559505,1735086656070,-500.0,0.00014246,2]
[346559506,1735086656080,-803.67,0.00014246,2]
[346559507,1735086656089,-500.0,0.00014246,2]
[346559508,1735086656101,-500.0,0.00014246,2]
[346559509,1735086656110,-500.0,0.00014246,2]
[346559510,1735086656120,-500.0,0.00014246,2]
[346559511,1735086656132,-500.0,0.00014246,2]
[346559512,1735086656142,-287.674482,0.00014246,2]
[346559513,1735086656152,-500.0,0.00014246,2]
[346559514,1735086656161,-287.674484,0.00014246,2]
[346559515,1735086656171,-278.36156378,0.00014246,2]
[346559516,1735086656183,-503.52497012,0.00014246,2]
[346559517,1735086656193,-500.0,0.00014246,2]
[346559518,1735086656202,-500.0,0.00014246,2]
[346559519,1735086656211,-500.0,0.00014246,2]
[346559520,1735086656222,-936.95,0.00014246,2]
[346559521,1735086656231,-500.0,0.00014246,2]
[346559522,1735086656241,-500.0,0.00014246,2]
[346559523,1735086656251,-506.57882795,0.00014246,2]
[346559524,1735086656260,-833.23,0.00014246,2]
[346559525,1735086656270,-370.98413911,0.00014246,2]
[346559526,1735086656279,-500.0,0.00014246,2]
[346559527,1735086656289,-500.0,0.00014246,2]
[346559528,1735086656299,-500.0,0.00014246,2]
[346559529,1735086656308,-500.0,0.00014246,2]
[346559530,1735086656318,-500.0,0.00014246,2]
[346559531,1735086656328,-500.0,0.00014246,2]
[346559532,1735086656339,-500.0,0.00014246,2]
[346559533,1735086656348,-500.0,0.00014246,2]
[346559534,1735086656358,-500.0,0.00014246,2]
[346559535,1735086656368,-500.0,0.00014246,2]
[346559536,1735086656377,-500.0,0.00014246,2]
[346559537,1735086656387,-510.68860711,0.00014246,2]
[346559538,1735086656397,-500.0,0.00014246,2]
[346559539,1735086656407,-500.0,0.00014246,2]
[346559540,1735086656416,-500.0,0.00014246,2]
[346559541,1735086656426,-500.0,0.00014246,2]
[346559542,1735086656435,-514.04027,0.00014246,2]
[346559543,1735086656444,-500.0,0.00014246,2]
[346559544,1735086656454,-514.04027,0.00014246,2]
[346559545,1735086656463,-514.04027,0.00014246,2]
[346559546,1735086656473,-514.040278,0.00014246,2]
[346559547,1735086656482,-500.0,0.00014246,2]
[346559548,1735086656491,-500.0,0.00014246,2]
[346559549,1735086656501,-299.39367826,0.00014246,2]
[346559550,1735086656510,-500.0,0.00014246,2]
[346559551,1735086656519,-500.0,0.00014246,2]
[346559552,1735086656528,-500.0,0.00014246,2]
[346559553,1735086656538,-727.92,0.00014246,2]
[346559554,1735086656548,-500.0,0.00014246,2]
[346559555,1735086656558,-926.37,0.00014246,2]
[346559556,1735086656568,-308.403845,0.00014246,2]
[346559557,1735086656577,-500.0,0.00014246,2]
[346559558,1735086656586,-308.40384532,0.00014246,2]
[346559559,1735086656596,-1893.4,0.00014246,2]
[346559560,1735086656605,-503.6,0.00014246,2]
[346559561,1735086656615,-500.0,0.00014246,2]
[346559562,1735086656625,-151.951626,0.00014246,2]
[346559563,1735086656635,-151.951626,0.00014246,2]
[346559564,1735086656644,-151.951626,0.00014246,2]
[346559565,1735086656654,-151.951626,0.00014246,2]
[346559566,1735086656665,-500.0,0.00014246,2]
[346559567,1735086656675,-151.951626,0.00014246,2]
[346559568,1735086656684,-151.951626,0.00014246,2]
[346559569,1735086656694,-151.951626,0.00014246,2]
[346559570,1735086656704,-151.951625,0.00014246,2]
[346559571,1735086656713,-500.0,0.00014246,2]
[346559572,1735086656723,-442.13167938,0.00014246,2]
[346559573,1735086656732,-500.0,0.00014246,2]
[346559574,1735086656742,-970.93,0.00014246,2]
[346559575,1735086656751,-500.0,0.00014246,2]
[346559576,1735086656761,-500.0,0.00014246,2]
[346559577,1735086656770,-510.82998133,0.00014246,2]
[346559578,1735086656779,-529.7817199,0.00014246,2]
[346559579,1735086656788,-500.0,0.00014246,2]
[346559580,1735086656798,-1490.47,0.00014246,2]
[346559581,1735086656807,-500.0,0.00014246,2]
[346559582,1735086656817,-500.0,0.00014246,2]
[346559583,1735086656826,-500.0,0.00014246,2]
[346559584,1735086656836,-500.0,0.00014246,2]
[346559585,1735086656845,-1498.23,0.00014246,2]
[346559586,1735086656854,-500.0,0.00014246,2]
[346559587,1735086656864,-500.0,0.00014246,2]
[346559588,1735086656873,-500.0,0.00014246,2]
[346559589,1735086656883,-1305.58,0.00014246,2]
[346559590,1735086656892,-500.0,0.00014246,2]
[346559591,1735086656903,-500.0,0.00014246,2]
[346559592,1735086656912,-500.0,0.00014246,2]
[346559593,1735086656922,-851.12,0.00014246,2]
[346559594,1735086656931,-500.0,0.00014246,2]
[346559595,1735086656941,-500.0,0.00014246,2]
[346559596,1735086656950,-616.12858949,0.00014246,2]
[346559597,1735086656959,-500.0,0.00014246,2]
[346559598,1735086656969,-560.57,0.00014246,2]
[346559599,1735086656978,-500.0,0.00014246,2]
[346559600,1735086657150,-784.59,0.00014246,2]
[346559601,1735086657164,-1587.6,0.00014246,2]
[346559602,1735086657173,-2890.26,0.00014246,2]
[346559603,1735086657183,-500.0,0.00014246,2]
[346559604,1735086657192,-648.07,0.00014246,2]
[346559605,1735086657201,-500.0,0.00014246,2]
[346559606,1735086657211,-500.0,0.00014246,2]
[346559607,1735086657220,-751.34,0.00014246,2]
[346559608,1735086657230,-500.0,0.00014246,2]
[346559609,1735086657239,-1409.8,0.00014246,2]
[346559610,1735086657249,-500.0,0.00014246,2]
[346559611,1735086657258,-1417.1,0.00014246,2]
[346559612,1735086657267,-500.0,0.00014246,2]
[346559613,1735086657277,-500.0,0.00014246,2]
[346559614,1735086657286,-500.0,0.00014246,2]
[346559615,1735086657296,-1049.36,0.00014246,2]
[346559616,1735086657305,-599.01,0.00014246,2]
[346559617,1735086657314,-500.0,0.00014246,2]
[346559618,1735086657324,-1000.0,0.00014246,2]
[346559619,1735086657334,-500.0,0.00014246,2]
[346559620,1735086657343,-500.0,0.00014246,2]
[346559621,1735086657352,-500.0,0.00014246,2]
[346559622,1735086657361,-718.89,0.00014246,2]
[346559623,1735086657371,-500.0,0.00014246,2]
[346559624,1735086657383,-500.0,0.00014246,2]
[346559625,1735086657392,-1591.46,0.00014246,2]
[346559626,1735086657401,-500.0,0.00014246,2]
[346559627,1735086657411,-971.96,0.00014246,2]
[346559628,1735086657421,-857.66,0.00014246,2]
[346559629,1735086657430,-2713.68,0.00014246,2]
[346559630,1735086657441,-544.49333269,0.00014246,2]
[346559631,1735086657451,-500.0,0.00014246,2]
[346559632,1735086657461,-789.99,0.00014246,2]
[346559633,1735086657471,-500.0,0.00014246,2]
[346559634,1735086657481,-500.0,0.00014246,2]
[346559635,1735086657492,-500.0,0.00014246,2]
[346559636,1735086657501,-500.0,0.00014246,2]
[346559637,1735086657511,-500.0,0.00014246,2]
[346559638,1735086657522,-683.14,0.00014246,2]
[346559639,1735086657531,-500.0,0.00014246,2]
[346559640,1735086657542,-500.0,0.00014246,2]
[346559641,1735086657551,-500.0,0.00014246,2]
[346559642,1735086657561,-500.0,0.00014246,2]
[346559643,1735086657571,-500.0,0.00014246,2]
[346559644,1735086657580,-500.0,0.00014246,2]
[346559645,1735086657590,-500.0,0.00014246,2]
[346559646,1735086657600,-500.0,0.00014246,2]
[346559647,1735086657610,-500.0,0.00014246,2]
[346559648,1735086657620,-980.04,0.00014246,2]
[346559649,1735086657629,-1384.93,0.00014246,2]
[346559650,1735086657639,-500.0,0.00014246,2]
[346559651,1735086657648,-500.0,0.00014246,2]
[346559652,1735086657658,-500.0,0.00014246,2]
[346559653,1735086657668,-500.0,0.00014246,2]
[346559654,1735086657680,-1629.73,0.00014246,2]
[346559655,1735086657690,-498.01263895,0.00014246,2]
[346559656,1735086657699,-500.0,0.00014246,2]
[346559657,1735086657708,-500.0,0.00014246,2]
[346559658,1735086657718,-500.0,0.00014246,2]
[346559659,1735086657727,-500.0,0.00014246,2]
[346559660,1735086657737,-1021.25,0.00014246,4]
[346559661,1735086657746,-500.0,0.00014246,2]
[346559662,1735086657755,-500.0,0.00014246,2]
[346559663,1735086657765,-500.0,0.00014246,2]
[346559664,1735086657775,-500.0,0.00014246,2]
[346559665,1735086657784,-2749.84,0.00014246,2]
[346559666,1735086657793,-583.07,0.00014246,2]
[346559667,1735086657803,-588.98,0.00014246,2]
[346559668,1735086657812,-500.0,0.00014246,2]
[346559669,1735086657821,-500.0,0.00014246,2]
[346559670,1735086657831,-501.73135802,0.00014246,2]
[346559671,1735086657840,-1178.28,0.00014246,2]
[346559672,1735086657850,-500.0,0.00014246,2]
[346559673,1735086657859,-3384.92,0.00014246,2]
[346559674,1735086657868,-500.0,0.00014246,2]
[346559675,1735086657877,-34.05502165,0.00014246,2]
[346559676,1735086657899,-857.55497835,0.00014246,2]
[346559677,1735086657909,-500.0,0.00014246,2]
[346559678,1735086657919,-500.0,0.00014246,2]
[346559679,1735086657928,-500.0,0.00014246,2]
[346559680,1735086657938,-314.49,0.00014246,2]
[346559681,1735086657947,-500.0,0.00014246,2]
[346559682,1735086657957,-983.51,0.00014246,2]
[346559683,1735086657968,-500.0,0.00014246,2]
[346559684,1735086657977,-500.0,0.00014246,2]
[346559685,1735086657987,-500.0,0.00014246,2]
[346559686,1735086657996,-867.61,0.00014246,2]
[346559687,1735086658005,-2235.76,0.00014246,2]
[346559688,1735086658015,-4291.89,0.00014246,2]
[346559689,1735086658028,-504.65551966,0.00014246,2]
[346559690,1735086658037,-500.0,0.00014246,2]
[346559691,1735086658046,-500.0,0.00014246,2]
[346559692,1735086658057,-1018.41,0.00014246,2]
[346559693,1735086658070,-1015.16,0.00014246,2]
[346559694,1735086658079,-1392.25,0.00014246,2]
[346559695,1735086658088,-500.0,0.00014246,2]
[346559696,1735086658099,-779.77,0.00014246,2]
[346559697,1735086658108,-901.9,0.00014246,2]
[346559698,1735086658118,-500.0,0.00014246,2]
[346559699,1735086658127,-2946.46,0.00014246,2]
[346559700,1735086658136,-1267.06,0.00014246,2]
[346559701,1735086658146,-500.0,0.00014246,2]
[346559702,1735086658156,-500.0,0.00014246,2]
[346559703,1735086658166,-500.0,0.00014246,2]
[346559704,1735086658175,-644.53,0.00014246,2]
[346559705,1735086658186,-500.0,0.00014246,2]
[346559706,1735086658196,-500.0,0.00014246,2]
[346559707,1735086658209,-1261.89,0.00014246,2]
[346559708,1735086658219,-500.0,0.00014246,2]
[346559709,1735086658228,-1437.35,0.00014246,2]
[346559710,1735086658238,-500.0,0.00014246,2]
[346559711,1735086658247,-599.92,0.00014246,2]
[346559712,1735086658256,-500.0,0.00014246,2]
[346559713,1735086658266,-769.64,0.00014246,2]
[346559714,1735086658277,-500.0,0.00014246,2]
[346559715,1735086658286,-500.0,0.00014246,2]
[346559716,1735086658296,-3333.73,0.00014246,2]
[346559717,1735086658305,-737.68,0.00014246,2]
[346559718,1735086658315,-500.0,0.00014246,2]
[346559719,1735086658324,-2870.31,0.00014246,2]
[346559720,1735086658333,-1428.92,0.00014246,2]
[346559721,1735086658343,-1577.48,0.00014246,2]
[346559722,1735086658352,-500.0,0.00014246,2]
[346559723,1735086658362,-500.0,0.00014246,2]
[346559724,1735086658371,-500.0,0.00014246,2]
[346559725,1735086658381,-1375.09,0.00014246,2]
[346559726,1735086658390,-500.0,0.00014246,2]
[346559727,1735086658399,-927.37,0.00014246,2]
[346559728,1735086658409,-1140.17,0.00014246,2]
[346559729,1735086658418,-500.0,0.00014246,2]
[346559730,1735086658428,-500.0,0.00014246,2]
[346559731,1735086658437,-2541.14,0.00014246,2]
[346559732,1735086658447,-436.19005188,0.00014246,2]
[346559733,1735086658459,-2581.99994812,0.00014246,2]
[346559734,1735086658470,-500.0,0.00014246,2]
[346559735,1735086658479,-5201.64,0.00014246,2]
[346559736,1735086658489,-1474.94,0.00014246,2]
[346559737,1735086658499,-500.0,0.00014246,2]
[346559738,1735086658510,-500.0,0.00014246,2]
[346559739,1735086658520,-1544.45,0.00014246,2]
[346559740,1735086658529,-500.0,0.00014246,2]
[346559741,1735086658539,-500.0,0.00014246,2]
[346559742,1735086658549,-500.0,0.00014246,2]
[346559743,1735086658558,-1179.54,0.00014246,2]
[346559744,1735086658567,-500.0,0.00014246,2]
[346559745,1735086658577,-500.0,0.00014246,2]
[346559746,1735086658587,-608.9,0.00014246,2]
[346559747,1735086658598,-1860.00654529,0.00014246,2]
[346559748,1735086853750,500.0,0.00018633,120]
[346559750,1735087749135,-167.49,0.0001178,2]
[346559751,1735087749157,-167.49,0.00011899,2]
[346559752,1735087749202,-1015.0664817,0.00012486,2]
[346559753,1735087755930,168.7665701,0.00012501,2]
[346559754,1735087764281,36.9235482,0.00012501,2]
[346559755,1735087764301,131.8430219,0.00012501,2]
[346559756,1735087772296,168.7665701,0.00012501,2]
[346559757,1735087780048,31.00953865,0.00012501,2]
[346559803,1735087831962,-137.75703145,0.00012501,2]
[346559805,1735087831974,-168.7665701,0.00012628,2]
[346559807,1735087831983,-167.49,0.00012639,2]
[346559809,1735087831993,-387.775,0.0001354,2]
[346559811,1735087832003,-348.36816623,0.00013588,2]
[346559813,1735087832012,-348.36816623,0.00013597,2]
[346559815,1735087832022,-1311.52358593,0.00013598,2]
[346559818,1735087832032,-500.0,0.00013673,2]
[346559821,1735087832041,-113.78810022,0.00013673,2]
[346559828,1735087832066,-386.21189978,0.00013673,2]
[346559831,1735087832075,-300.0,0.00013679,2]
[346559833,1735087832084,-300.0,0.00013679,2]
[346559836,1735087832094,-3016.11913185,0.0001368,2]
[346560220,1735087837862,-27180.90882345,0.0001368,2]
[346560221,1735087837871,-500.0,0.00013697,2]
[346560222,1735087837881,-500.0,0.00013697,2]
[346560223,1735087837890,-608.84051616,0.00013697,2]
[346560224,1735087837900,-500.0,0.00013697,2]
[346560225,1735087837910,-500.0,0.00013697,2]
[346560226,1735087837920,-500.0,0.00013697,2]
[346560227,1735087837929,-500.0,0.00013697,2]
[346560228,1735087837939,-500.0,0.00013697,2]
[346560229,1735087837947,-500.0,0.00013697,2]
[346560230,1735087837957,-191.13902865,0.00013697,2]
[346560231,1735087837967,-500.0,0.00013697,2]
[346560232,1735087837979,-500.0,0.00013697,2]
[346560233,1735087837990,-268.44675688,0.00013697,2]
[346560234,1735087837999,-500.0,0.00013697,2]
[346560235,1735087838009,-500.0,0.00013697,2]
[346560236,1735087838018,-500.0,0.00013697,2]
[346560237,1735087838027,-500.0,0.00013697,2]
[346560238,1735087838037,-225.54248523,0.00013697,2]
[346560239,1735087838046,-384.69463144,0.00013697,2]
[346560240,1735087838055,-500.0,0.00013697,2]
[346560241,1735087838065,-500.0,0.00013697,2]
[346560242,1735087838075,-500.0,0.00013697,2]
[346560243,1735087838084,-500.0,0.00013697,2]
[346560244,1735087838093,-453.78604372,0.00013697,2]
[346560245,1735087838103,-191.86728993,0.00013697,2]
[346560246,1735087838112,-500.0,0.00013697,2]
[346560247,1735087838122,-573.90022087,0.00013697,2]
[346560248,1735087838131,-501.13110504,0.00013698,2]
[346560249,1735087838141,-500.0,0.00013698,2]
[346560250,1735087838151,-500.0,0.00013698,2]
[346560251,1735087838160,-500.0,0.00013698,2]
[346560252,1735087838169,-500.0,0.00013698,2]
[346560253,1735087838179,-500.0,0.00013698,2]
[346560254,1735087838189,-500.0,0.00013698,2]
[346560255,1735087838198,-500.0,0.00013698,2]
[346560256,1735087838207,-500.0,0.00013698,2]
[346560257,1735087838216,-500.0,0.00013698,2]
[346560258,1735087838226,-500.0,0.00013698,2]
[346560259,1735087838236,-500.0,0.00013698,2]
[346560260,1735087838245,-500.0,0.00013698,2]
[346560261,1735087838254,-500.0,0.00013698,2]
[346560262,1735087838264,-500.0,0.00013698,2]
[346560263,1735087838273,-707.35,0.00013698,2]
[346560264,1735087838282,-500.0,0.00013698,2]
[346560265,1735087838292,-500.0,0.00013698,2]
[346560266,1735087838301,-918.19,0.00013698,2]
[346560267,1735087838311,-511.10240387,0.00013698,2]
[346560268,1735087838320,-500.0,0.00013698,2]
[346560269,1735087838329,-500.0,0.00013698,2]
[346560270,1735087838338,-500.0,0.00013698,2]
[346560271,1735087838347,-1163.22,0.00013698,2]